[Event "Betsys MČR v online bleskovém šachu 2021"]
[Site "Chess.com"]
[Date "2021.04.17"]
[Round "1"]
[White "DiscoSTU666"]
[Black "Skalicky"]
[Result "1-0"]
[WhiteElo "1873"]
[BlackElo "798"]
[TimeControl "180+1"]
[EndTime "9:05:42 PDT"]
[Termination "Uživatel DiscoSTU666 zvítězil na čas"]

1. e4 {[%clk 0:02:58.6]} 1... c5 {[%clk 0:02:59.6]} 2. Nf3 {[%clk 0:02:57.5]}
2... e6 {[%clk 0:02:58.9]} 3. d4 {[%clk 0:02:57.1]} 3... cxd4 {[%clk 0:02:58.4]}
4. Nxd4 {[%clk 0:02:55.3]} 4... Nc6 {[%clk 0:02:58]} 5. Nc3 {[%clk 0:02:53]}
5... Qc7 {[%clk 0:02:57]} 6. Be3 {[%clk 0:02:49.2]} 6... Nf6 {[%clk 0:02:53.8]}
7. Qf3 {[%clk 0:02:48]} 7... Bb4 {[%clk 0:02:47.3]} 8. Nb5 {[%clk 0:02:32.4]}
8... Qb8 {[%clk 0:02:44.1]} 9. O-O-O {[%clk 0:02:27.7]} 9... O-O {[%clk
0:02:41.1]} 10. h4 {[%clk 0:02:12.9]} 10... Bxc3 {[%clk 0:02:34]} 11. Nxc3
{[%clk 0:02:11.4]} 11... a6 {[%clk 0:02:31.1]} 12. h5 {[%clk 0:02:09.2]} 12...
Rd8 {[%clk 0:02:15.2]} 13. h6 {[%clk 0:02:05.9]} 13... Ne8 {[%clk 0:02:01.5]}
14. hxg7 {[%clk 0:01:58.2]} 14... Nxg7 {[%clk 0:01:57.2]} 15. Qh3 {[%clk
0:01:57.8]} 15... Kf8 {[%clk 0:01:35.9]} 16. Qxh7 {[%clk 0:01:56.6]} 16... Ke7
{[%clk 0:01:23.3]} 17. Qxg7 {[%clk 0:01:52.8]} 17... Qc7 {[%clk 0:01:08.8]} 18.
Bg5+ {[%clk 0:01:48.3]} 1-0

[Event "Betsys MČR v online bleskovém šachu 2021"]
[Site "Chess.com"]
[Date "2021.04.17"]
[Round "1"]
[White "FBingoPlayer"]
[Black "Adam20032007"]
[Result "1-0"]
[WhiteElo "2216"]
[BlackElo "1582"]
[TimeControl "180+1"]
[EndTime "9:05:44 PDT"]
[Termination "Uživatel FBingoPlayer zvítězil matem"]

1. Nc3 {[%clk 0:02:57.1]} 1... Nf6 {[%clk 0:02:56.2]} 2. e4 {[%clk 0:02:56.6]}
2... e5 {[%clk 0:02:52.9]} 3. f4 {[%clk 0:02:56.3]} 3... d6 {[%clk 0:02:49]} 4.
Nf3 {[%clk 0:02:55.9]} 4... Nc6 {[%clk 0:02:42.3]} 5. Bb5 {[%clk 0:02:54.5]}
5... Bd7 {[%clk 0:02:15.8]} 6. O-O {[%clk 0:02:52]} 6... exf4 {[%clk 0:02:00.8]}
7. d4 {[%clk 0:02:51.1]} 7... Be7 {[%clk 0:01:37.9]} 8. Bxf4 {[%clk 0:02:50]}
8... O-O {[%clk 0:01:34.9]} 9. Qd2 {[%clk 0:02:49.9]} 9... a6 {[%clk 0:01:25]}
10. Bd3 {[%clk 0:02:47.5]} 10... h6 {[%clk 0:01:19.9]} 11. a3 {[%clk 0:02:46.5]}
11... Bg4 {[%clk 0:01:15.8]} 12. Rae1 {[%clk 0:02:45.5]} 12... d5 {[%clk
0:01:08.4]} 13. e5 {[%clk 0:02:44.7]} 13... Nh5 {[%clk 0:00:57.3]} 14. Be3
{[%clk 0:02:44.8]} 14... f6 {[%clk 0:00:42.5]} 15. Bxh6 {[%clk 0:02:31.5]} 15...
gxh6 {[%clk 0:00:36.5]} 16. Qxh6 {[%clk 0:02:32.4]} 16... Rf7 {[%clk 0:00:34.1]}
17. h3 {[%clk 0:02:00.5]} 17... Ng3 {[%clk 0:00:19.3]} 18. hxg4 {[%clk
0:01:53.1]} 18... Nxf1 {[%clk 0:00:19.3]} 19. Rxf1 {[%clk 0:01:53.4]} 19... Rg7
{[%clk 0:00:19.2]} 20. Kf2 {[%clk 0:01:52.7]} 20... fxe5 {[%clk 0:00:19.2]} 21.
dxe5 {[%clk 0:01:49.4]} 21... Bg5 {[%clk 0:00:19.6]} 22. Qe6+ {[%clk 0:01:45.4]}
22... Kh8 {[%clk 0:00:17.4]} 23. Rh1+ {[%clk 0:01:43.6]} 23... Rh7 {[%clk
0:00:16.7]} 24. Rxh7# {[%clk 0:01:42.5]} 1-0

[Event "Betsys MČR v online bleskovém šachu 2021"]
[Site "Chess.com"]
[Date "2021.04.17"]
[Round "1"]
[White "Petr_Zacek"]
[Black "TheRigos"]
[Result "0-1"]
[WhiteElo "1793"]
[BlackElo "2534"]
[TimeControl "180+1"]
[EndTime "9:05:45 PDT"]
[Termination "Uživatel TheRigos zvítězil po vzdání soupeře"]

1. d4 {[%clk 0:02:57.9]} 1... Nf6 {[%clk 0:02:57.3]} 2. Bg5 {[%clk 0:02:56.4]}
2... Ne4 {[%clk 0:02:56.5]} 3. Bf4 {[%clk 0:02:56.1]} 3... c5 {[%clk 0:02:56.8]}
4. c3 {[%clk 0:02:55.4]} 4... e6 {[%clk 0:02:48.5]} 5. Nd2 {[%clk 0:02:54.1]}
5... Nf6 {[%clk 0:02:45.4]} 6. Ngf3 {[%clk 0:02:52.6]} 6... Nc6 {[%clk 0:02:45]}
7. e3 {[%clk 0:02:51.7]} 7... d5 {[%clk 0:02:45.3]} 8. Bd3 {[%clk 0:02:50.6]}
8... Bd6 {[%clk 0:02:45]} 9. Bxd6 {[%clk 0:02:48.8]} 9... Qxd6 {[%clk
0:02:45.9]} 10. O-O {[%clk 0:02:48.3]} 10... O-O {[%clk 0:02:44.7]} 11. dxc5
{[%clk 0:02:46.5]} 11... Qxc5 {[%clk 0:02:44.4]} 12. e4 {[%clk 0:02:46]} 12...
e5 {[%clk 0:02:07.3]} 13. Qe2 {[%clk 0:02:31.2]} 13... Re8 {[%clk 0:02:01.5]}
14. Rac1 {[%clk 0:02:27.8]} 14... Bg4 {[%clk 0:01:53.5]} 15. h3 {[%clk
0:02:20.4]} 15... Bh5 {[%clk 0:01:53.1]} 16. exd5 {[%clk 0:02:10.7]} 16... Nxd5
{[%clk 0:01:44.2]} 17. Nb3 {[%clk 0:02:09.5]} 17... Qb6 {[%clk 0:01:40]} 18. Be4
{[%clk 0:02:08.4]} 18... Nf6 {[%clk 0:01:34.2]} 19. Bf5 {[%clk 0:01:57.2]} 19...
e4 {[%clk 0:01:30.2]} 20. Qc2 {[%clk 0:01:21.7]} 20... exf3 {[%clk 0:01:28.9]}
21. g4 {[%clk 0:01:18.8]} 21... Bg6 {[%clk 0:01:28.9]} 22. Bxg6 {[%clk
0:01:17.9]} 22... hxg6 {[%clk 0:01:28.5]} 23. Rcd1 {[%clk 0:01:12]} 23... Re2
{[%clk 0:01:27.5]} 24. Qc1 {[%clk 0:01:07.2]} 24... Rae8 {[%clk 0:01:25.1]} 25.
Qf4 {[%clk 0:01:05.4]} 25... Ne5 {[%clk 0:01:20.9]} 0-1

[Event "Betsys MČR v online bleskovém šachu 2021"]
[Site "Chess.com"]
[Date "2021.04.17"]
[Round "1"]
[White "Toman_26"]
[Black "Jindrich4321"]
[Result "0-1"]
[WhiteElo "1070"]
[BlackElo "1934"]
[TimeControl "180+1"]
[EndTime "9:05:48 PDT"]
[Termination "Uživatel Jindrich4321 zvítězil po vzdání soupeře"]

1. e4 {[%clk 0:03:00.9]} 1... e6 {[%clk 0:02:56.4]} 2. d4 {[%clk 0:02:59.3]}
2... d5 {[%clk 0:02:56.3]} 3. e5 {[%clk 0:02:58.6]} 3... c5 {[%clk 0:02:55.6]}
4. Nf3 {[%clk 0:02:57.7]} 4... Nc6 {[%clk 0:02:55.2]} 5. c3 {[%clk 0:02:56.3]}
5... cxd4 {[%clk 0:02:54.1]} 6. cxd4 {[%clk 0:02:55.8]} 6... Nge7 {[%clk
0:02:54.5]} 7. Bd3 {[%clk 0:02:55]} 7... Nf5 {[%clk 0:02:54.2]} 8. Bc2 {[%clk
0:02:48.7]} 8... Qb6 {[%clk 0:02:50.3]} 9. Bxf5 {[%clk 0:02:42.6]} 9... exf5
{[%clk 0:02:49.4]} 10. O-O {[%clk 0:02:42.1]} 10... Be6 {[%clk 0:02:49.8]} 11.
Qb3 {[%clk 0:02:35.6]} 11... Qxb3 {[%clk 0:02:41.6]} 12. axb3 {[%clk 0:02:34.2]}
12... Be7 {[%clk 0:02:36.8]} 13. Nc3 {[%clk 0:02:29.2]} 13... O-O {[%clk
0:02:35.3]} 14. Bf4 {[%clk 0:02:25.2]} 14... Rfc8 {[%clk 0:02:33.7]} 15. Rfc1
{[%clk 0:02:24.2]} 15... Nb4 {[%clk 0:02:30.7]} 16. Nb5 {[%clk 0:02:19.6]} 16...
Rxc1+ {[%clk 0:02:24.9]} 17. Rxc1 {[%clk 0:02:18.5]} 17... Nd3 {[%clk
0:02:24.4]} 18. Be3 {[%clk 0:01:54]} 18... Nxc1 {[%clk 0:02:22.6]} 19. Bxc1
{[%clk 0:01:54.9]} 19... a6 {[%clk 0:02:20.6]} 20. Nd6 {[%clk 0:01:50.9]} 20...
h6 {[%clk 0:02:12]} 21. h3 {[%clk 0:01:43.9]} 21... g5 {[%clk 0:02:10.5]} 22.
Nxb7 {[%clk 0:01:38.6]} 22... Rb8 {[%clk 0:02:08.7]} 23. Na5 {[%clk 0:01:38.1]}
23... Rb5 {[%clk 0:01:56.7]} 24. Nc6 {[%clk 0:01:37.6]} 24... Bf8 {[%clk
0:01:52.5]} 25. Bd2 {[%clk 0:01:25.8]} 25... Rxb3 {[%clk 0:01:47.1]} 26. Bc3
{[%clk 0:01:23.5]} 26... Bd7 {[%clk 0:01:42.4]} 27. Nb4 {[%clk 0:01:16]} 27...
Bxb4 {[%clk 0:01:40.5]} 28. Bxb4 {[%clk 0:01:15.8]} 28... Rxb4 {[%clk
0:01:39.7]} 29. h4 {[%clk 0:01:12.6]} 29... g4 {[%clk 0:01:37.7]} 30. Ne1 {[%clk
0:01:08.9]} 30... Rxb2 {[%clk 0:01:35.5]} 31. Nd3 {[%clk 0:01:08.5]} 31... Rb1+
{[%clk 0:01:35]} 32. Kh2 {[%clk 0:01:08.5]} 32... a5 {[%clk 0:01:34.5]} 33. Nc5
{[%clk 0:01:07.5]} 33... Be8 {[%clk 0:01:31.4]} 34. e6 {[%clk 0:01:00]} 34...
fxe6 {[%clk 0:01:28.2]} 35. Nxe6 {[%clk 0:00:59.9]} 35... a4 {[%clk 0:01:28]}
0-1

[Event "Betsys MČR v online bleskovém šachu 2021"]
[Site "Chess.com"]
[Date "2021.04.17"]
[Round "1"]
[White "mayerrs"]
[Black "kubajss"]
[Result "1-0"]
[WhiteElo "1883"]
[BlackElo "878"]
[TimeControl "180+1"]
[EndTime "9:05:48 PDT"]
[Termination "Uživatel mayerrs zvítězil po vzdání soupeře"]

1. g3 {[%clk 0:03:00.9]} 1... e5 {[%clk 0:02:57]} 2. Bg2 {[%clk 0:03:01.2]} 2...
Nf6 {[%clk 0:02:55.7]} 3. e3 {[%clk 0:03:01.1]} 3... Bc5 {[%clk 0:02:55.8]} 4.
b3 {[%clk 0:02:59.5]} 4... Nc6 {[%clk 0:02:54.3]} 5. Bb2 {[%clk 0:02:59.8]} 5...
d6 {[%clk 0:02:53.1]} 6. a3 {[%clk 0:02:59.3]} 6... O-O {[%clk 0:02:50.9]} 7.
Ne2 {[%clk 0:02:59.3]} 7... Re8 {[%clk 0:02:49.3]} 8. O-O {[%clk 0:02:58.6]}
8... d5 {[%clk 0:02:36.1]} 9. d4 {[%clk 0:02:57.9]} 9... Bd6 {[%clk 0:02:33.8]}
10. c4 {[%clk 0:02:53]} 10... exd4 {[%clk 0:02:10.9]} 11. Nxd4 {[%clk 0:02:46]}
11... Be6 {[%clk 0:02:02.4]} 12. Nc3 {[%clk 0:02:37]} 12... dxc4 {[%clk
0:01:53]} 13. Nxc6 {[%clk 0:02:36.9]} 13... bxc6 {[%clk 0:01:51.3]} 14. Bxc6
{[%clk 0:02:37.8]} 14... Re7 {[%clk 0:01:51.8]} 15. Bxa8 {[%clk 0:02:33.5]}
15... Qxa8 {[%clk 0:01:52.3]} 16. e4 {[%clk 0:02:07.7]} 16... Bh3 {[%clk
0:01:50.2]} 17. Re1 {[%clk 0:02:07.2]} 17... Nxe4 {[%clk 0:01:43]} 18. Qf3
{[%clk 0:02:04.5]} 18... Qe8 {[%clk 0:01:31.8]} 19. Rxe4 {[%clk 0:01:54]} 19...
cxb3 {[%clk 0:01:00.8]} 20. Rxe7 {[%clk 0:01:44.7]} 20... Qxe7 {[%clk
0:01:00.6]} 21. Qa8+ {[%clk 0:01:44]} 21... Qf8 {[%clk 0:00:58.7]} 22. Qxf8+
{[%clk 0:01:42]} 22... Kxf8 {[%clk 0:00:58.5]} 23. Nb5 {[%clk 0:01:37.4]} 23...
Bc5 {[%clk 0:00:37.3]} 24. Nxc7 {[%clk 0:01:33]} 1-0

[Event "Betsys MČR v online bleskovém šachu 2021"]
[Site "Chess.com"]
[Date "2021.04.17"]
[Round "1"]
[White "Asmodai5"]
[Black "sachovybukowski"]
[Result "0-1"]
[WhiteElo "1193"]
[BlackElo "1998"]
[TimeControl "180+1"]
[EndTime "9:05:50 PDT"]
[Termination "Uživatel sachovybukowski zvítězil na čas"]

1. e4 {[%clk 0:02:59.5]} 1... c5 {[%clk 0:03:00]} 2. Nf3 {[%clk 0:02:57.5]} 2...
d6 {[%clk 0:02:59.8]} 3. d4 {[%clk 0:02:53.9]} 3... cxd4 {[%clk 0:02:59.9]} 4.
Nxd4 {[%clk 0:02:52.7]} 4... Nf6 {[%clk 0:03:00.1]} 5. Nc3 {[%clk 0:02:51.7]}
5... a6 {[%clk 0:03:00.2]} 6. Bd3 {[%clk 0:02:45.4]} 6... e6 {[%clk 0:03:00.2]}
7. O-O {[%clk 0:02:44.9]} 7... Be7 {[%clk 0:02:59.9]} 8. Bg5 {[%clk 0:02:43.8]}
8... O-O {[%clk 0:02:59.9]} 9. Bxf6 {[%clk 0:02:40.9]} 9... Bxf6 {[%clk
0:02:59.4]} 10. Nf3 {[%clk 0:02:34.9]} 10... Qb6 {[%clk 0:02:58]} 11. Na4 {[%clk
0:02:06]} 11... Qc7 {[%clk 0:02:56.5]} 12. Rb1 {[%clk 0:01:49.1]} 12... b5
{[%clk 0:02:50.5]} 13. Nc3 {[%clk 0:01:45.5]} 13... Bxc3 {[%clk 0:02:48.2]} 14.
bxc3 {[%clk 0:01:45]} 14... Qxc3 {[%clk 0:02:48.2]} 15. Rb3 {[%clk 0:01:39.5]}
15... Qc7 {[%clk 0:02:45.3]} 16. Be2 {[%clk 0:01:33.8]} 16... Nd7 {[%clk
0:02:42.2]} 17. Rd3 {[%clk 0:01:27.8]} 17... Nc5 {[%clk 0:02:41.8]} 18. Rxd6
{[%clk 0:01:15.1]} 18... Nxe4 {[%clk 0:02:41.7]} 19. Rd4 {[%clk 0:01:07.2]}
19... Nf6 {[%clk 0:02:37.9]} 20. Bd3 {[%clk 0:00:56.9]} 20... Qc5 {[%clk
0:02:33.5]} 21. Be4 {[%clk 0:00:43.1]} 21... Nxe4 {[%clk 0:02:23.1]} 22. Rxe4
{[%clk 0:00:40.9]} 22... Bb7 {[%clk 0:02:22.9]} 23. Rh4 {[%clk 0:00:33.8]} 23...
Bxf3 {[%clk 0:02:22.2]} 24. gxf3 {[%clk 0:00:30.4]} 24... h5 {[%clk 0:02:09.6]}
25. Qd3 {[%clk 0:00:26.5]} 25... Qg5+ {[%clk 0:02:08]} 26. Kh1 {[%clk
0:00:24.2]} 26... Qxh4 {[%clk 0:02:07.4]} 27. Qd6 {[%clk 0:00:04.5]} 27... Rfd8
{[%clk 0:02:05.2]} 0-1

[Event "Betsys MČR v online bleskovém šachu 2021"]
[Site "Chess.com"]
[Date "2021.04.17"]
[Round "1"]
[White "hvanacek"]
[Black "jachymcarostrelec4"]
[Result "0-1"]
[WhiteElo "958"]
[BlackElo "1897"]
[TimeControl "180+1"]
[EndTime "9:05:50 PDT"]
[Termination "Uživatel jachymcarostrelec4 zvítězil matem"]

1. e4 {[%clk 0:02:56.9]} 1... c6 {[%clk 0:02:59.8]} 2. f4 {[%clk 0:02:57.2]}
2... d5 {[%clk 0:03:00.7]} 3. Nc3 {[%clk 0:02:52.5]} 3... d4 {[%clk 0:02:50.3]}
4. Nce2 {[%clk 0:02:50.5]} 4... Bg4 {[%clk 0:02:48.4]} 5. Nf3 {[%clk 0:02:48.5]}
5... Bxf3 {[%clk 0:02:45.2]} 6. gxf3 {[%clk 0:02:47.3]} 6... e6 {[%clk
0:02:44.1]} 7. d3 {[%clk 0:02:43.6]} 7... c5 {[%clk 0:02:34.8]} 8. f5 {[%clk
0:02:41.9]} 8... exf5 {[%clk 0:02:31.6]} 9. exf5 {[%clk 0:02:42.2]} 9... Bd6
{[%clk 0:02:32.2]} 10. Bf4 {[%clk 0:02:39.2]} 10... Bxf4 {[%clk 0:02:26.5]} 11.
Nxf4 {[%clk 0:02:37.3]} 11... Qh4+ {[%clk 0:02:26.8]} 12. Kd2 {[%clk 0:02:31.2]}
12... Qxf4+ {[%clk 0:02:27.7]} 13. Ke1 {[%clk 0:02:25.5]} 13... Nf6 {[%clk
0:02:23.1]} 14. Qd2 {[%clk 0:02:22.5]} 14... Qxd2+ {[%clk 0:02:20.1]} 15. Kxd2
{[%clk 0:02:23]} 15... Nbd7 {[%clk 0:02:20.2]} 16. b3 {[%clk 0:02:21.4]} 16...
Nb6 {[%clk 0:02:19.8]} 17. Kc1 {[%clk 0:02:21.7]} 17... Nbd5 {[%clk 0:02:19.4]}
18. Kb2 {[%clk 0:02:22.3]} 18... Ne3 {[%clk 0:02:17.9]} 19. Re1 {[%clk
0:02:19.9]} 19... Nd5 {[%clk 0:02:17.1]} 20. Rg1 {[%clk 0:02:13.4]} 20... O-O
{[%clk 0:02:13.5]} 21. f4 {[%clk 0:01:57.6]} 21... f6 {[%clk 0:02:11.6]} 22. Bg2
{[%clk 0:01:54.7]} 22... Nxg2 {[%clk 0:02:07.9]} 23. Rxg2 {[%clk 0:01:54.1]}
23... Ne3 {[%clk 0:02:06.7]} 24. Rge2 {[%clk 0:01:51.4]} 24... Kf7 {[%clk
0:02:06.1]} 25. Ka3 {[%clk 0:01:49.4]} 25... Rfe8 {[%clk 0:02:04.8]} 26. Kb2
{[%clk 0:01:41.3]} 26... Re7 {[%clk 0:02:03.3]} 27. Kc1 {[%clk 0:01:36.1]} 27...
Rae8 {[%clk 0:02:01.9]} 28. a3 {[%clk 0:01:19.1]} 28... Nxf5 {[%clk 0:01:59.1]}
29. Rxe7+ {[%clk 0:01:17.2]} 29... Rxe7 {[%clk 0:02:00]} 30. Rxe7+ {[%clk
0:01:16.4]} 30... Nxe7 {[%clk 0:02:00.9]} 31. Kd2 {[%clk 0:01:16.5]} 31... Nd5
{[%clk 0:02:01.2]} 32. Ke2 {[%clk 0:01:16.5]} 32... Ne3 {[%clk 0:02:00.3]} 33.
Kf3 {[%clk 0:01:16]} 33... Nxc2 {[%clk 0:01:58.8]} 34. Ke4 {[%clk 0:01:16.5]}
34... Na1 {[%clk 0:01:59.7]} 35. Kd5 {[%clk 0:01:16.7]} 35... Nxb3 {[%clk
0:01:59.8]} 36. Kc4 {[%clk 0:01:15]} 36... Nc1 {[%clk 0:01:59.2]} 37. Kxc5
{[%clk 0:01:13.9]} 37... Nxd3+ {[%clk 0:01:59.3]} 38. Kxd4 {[%clk 0:01:14]}
38... Nxf4 {[%clk 0:02:00.2]} 39. Kc5 {[%clk 0:01:13.1]} 39... Ne6+ {[%clk
0:02:01.1]} 40. Kd6 {[%clk 0:01:12.9]} 40... b5 {[%clk 0:02:01.4]} 41. Kc6
{[%clk 0:01:12.7]} 41... Nd4+ {[%clk 0:01:54.8]} 42. Kc5 {[%clk 0:01:11.9]}
42... Nc2 {[%clk 0:01:54.4]} 43. Kxb5 {[%clk 0:01:12.6]} 43... Nxa3+ {[%clk
0:01:55]} 44. Ka6 {[%clk 0:01:13]} 44... f5 {[%clk 0:01:53.4]} 45. Kxa7 {[%clk
0:01:13.9]} 45... f4 {[%clk 0:01:54.3]} 46. Kb6 {[%clk 0:01:14]} 46... f3 {[%clk
0:01:55.2]} 47. Kc5 {[%clk 0:01:14.9]} 47... f2 {[%clk 0:01:56.1]} 48. Kd4
{[%clk 0:01:15.2]} 48... f1=Q {[%clk 0:01:57]} 49. Ke3 {[%clk 0:01:15.9]} 49...
Nc2+ {[%clk 0:01:49.6]} 50. Ke4 {[%clk 0:01:16.8]} 50... Ke6 {[%clk 0:01:46.4]}
51. h4 {[%clk 0:01:13.9]} 51... Qf5# {[%clk 0:01:46.8]} 0-1

[Event "Betsys MČR v online bleskovém šachu 2021"]
[Site "Chess.com"]
[Date "2021.04.17"]
[Round "1"]
[White "catanist19"]
[Black "Saygram"]
[Result "0-1"]
[WhiteElo "1752"]
[BlackElo "2397"]
[TimeControl "180+1"]
[EndTime "9:05:51 PDT"]
[Termination "Uživatel Saygram zvítězil po vzdání soupeře"]

1. d4 {[%clk 0:02:58.7]} 1... d5 {[%clk 0:02:57.8]} 2. c4 {[%clk 0:02:57.5]}
2... dxc4 {[%clk 0:02:58]} 3. e3 {[%clk 0:02:56.4]} 3... Nf6 {[%clk 0:02:58.9]}
4. Bxc4 {[%clk 0:02:54.5]} 4... e6 {[%clk 0:02:59.8]} 5. Nf3 {[%clk 0:02:52.8]}
5... c5 {[%clk 0:03:00.1]} 6. O-O {[%clk 0:02:52.1]} 6... Nc6 {[%clk 0:03:00.3]}
7. Nc3 {[%clk 0:02:49.6]} 7... cxd4 {[%clk 0:02:59.9]} 8. exd4 {[%clk
0:02:48.3]} 8... Be7 {[%clk 0:03:00.4]} 9. Re1 {[%clk 0:02:46.1]} 9... O-O
{[%clk 0:03:00.2]} 10. Bf4 {[%clk 0:02:42.3]} 10... Nb4 {[%clk 0:02:55.4]} 11.
Ne5 {[%clk 0:02:26.9]} 11... Nbd5 {[%clk 0:02:50.3]} 12. Nxd5 {[%clk 0:02:25.1]}
12... Nxd5 {[%clk 0:02:50.1]} 13. Bg3 {[%clk 0:02:21]} 13... Bf6 {[%clk
0:02:39.9]} 14. Rc1 {[%clk 0:02:14.3]} 14... a6 {[%clk 0:02:33.3]} 15. a3 {[%clk
0:02:12.3]} 15... b5 {[%clk 0:02:28.9]} 16. Bd3 {[%clk 0:02:10.2]} 16... Bb7
{[%clk 0:02:28.4]} 17. Qc2 {[%clk 0:02:03.8]} 17... g6 {[%clk 0:02:20.9]} 18.
Be4 {[%clk 0:01:33.5]} 18... Rc8 {[%clk 0:02:16.5]} 19. Qd2 {[%clk 0:01:27.4]}
19... Bg7 {[%clk 0:02:13]} 20. h4 {[%clk 0:01:20.4]} 20... f5 {[%clk 0:01:24]}
21. Bf3 {[%clk 0:01:15.5]} 21... f4 {[%clk 0:01:18.7]} 22. Bxd5 {[%clk 0:01:10]}
22... Qxd5 {[%clk 0:01:18.2]} 23. f3 {[%clk 0:00:58]} 23... fxg3 {[%clk
0:01:10.3]} 0-1

[Event "Betsys MČR v online bleskovém šachu 2021"]
[Site "Chess.com"]
[Date "2021.04.17"]
[Round "1"]
[White "Bohous13"]
[Black "indebol"]
[Result "1-0"]
[WhiteElo "2197"]
[BlackElo "1549"]
[TimeControl "180+1"]
[EndTime "9:05:51 PDT"]
[Termination "Uživatel Bohous13 zvítězil po vzdání soupeře"]

1. e4 {[%clk 0:03:00.9]} 1... e6 {[%clk 0:02:56.2]} 2. d4 {[%clk 0:03:00.2]}
2... d5 {[%clk 0:02:55.6]} 3. exd5 {[%clk 0:03:00.4]} 3... exd5 {[%clk
0:02:55.6]} 4. Bd3 {[%clk 0:03:00.7]} 4... Nf6 {[%clk 0:02:55.6]} 5. Nf3 {[%clk
0:03:00.6]} 5... Be7 {[%clk 0:02:55.6]} 6. O-O {[%clk 0:02:59.9]} 6... O-O
{[%clk 0:02:55.7]} 7. Bf4 {[%clk 0:02:59.8]} 7... Bg4 {[%clk 0:02:54.8]} 8. Nbd2
{[%clk 0:02:58.9]} 8... Nbd7 {[%clk 0:02:54.2]} 9. c3 {[%clk 0:02:58.5]} 9... c6
{[%clk 0:02:53.7]} 10. Qc2 {[%clk 0:02:58.1]} 10... h6 {[%clk 0:02:52]} 11. Rfe1
{[%clk 0:02:55.5]} 11... Re8 {[%clk 0:02:48.7]} 12. Ne5 {[%clk 0:02:54.9]} 12...
Nxe5 {[%clk 0:02:46.9]} 13. dxe5 {[%clk 0:02:51.9]} 13... Nd7 {[%clk 0:02:41.1]}
14. h3 {[%clk 0:02:51.5]} 14... Be6 {[%clk 0:02:36.5]} 15. Bg3 {[%clk 0:02:49]}
15... Qc7 {[%clk 0:02:30.6]} 16. f4 {[%clk 0:02:46]} 16... c5 {[%clk 0:02:29.5]}
17. f5 {[%clk 0:02:37.7]} 17... c4 {[%clk 0:02:26.5]} 18. Bf1 {[%clk 0:02:33.7]}
18... Bc5+ {[%clk 0:02:18.7]} 19. Kh2 {[%clk 0:02:29.1]} 19... d4 {[%clk
0:02:07.9]} 20. cxd4 {[%clk 0:02:20]} 20... Nxe5 {[%clk 0:01:51.7]} 21. fxe6
{[%clk 0:02:12.7]} 21... Bxd4 {[%clk 0:01:44]} 22. Qe4 {[%clk 0:01:58.1]} 22...
Bxb2 {[%clk 0:01:37.3]} 23. Bxe5 {[%clk 0:01:53.3]} 23... Rxe6 {[%clk
0:01:27.5]} 24. Bxc7 {[%clk 0:01:50.2]} 24... Rxe4 {[%clk 0:01:27.4]} 25. Nxe4
{[%clk 0:01:49.2]} 25... Bxa1 {[%clk 0:01:26.3]} 26. Rxa1 {[%clk 0:01:48.3]}
26... b5 {[%clk 0:01:26]} 27. a4 {[%clk 0:01:45.4]} 27... b4 {[%clk 0:01:21]}
28. Bxc4 {[%clk 0:01:39.7]} 28... Rc8 {[%clk 0:01:19.5]} 29. Rc1 {[%clk
0:01:39.5]} 29... Rxc7 {[%clk 0:01:18.4]} 30. Nd6 {[%clk 0:01:38.5]} 30... Kh8
{[%clk 0:00:58.4]} 31. Nxf7+ {[%clk 0:01:36.7]} 31... Kh7 {[%clk 0:00:56.4]} 32.
Bd3+ {[%clk 0:01:35.4]} 32... g6 {[%clk 0:00:55.4]} 33. Rxc7 {[%clk 0:01:33.9]}
1-0

[Event "Betsys MČR v online bleskovém šachu 2021"]
[Site "Chess.com"]
[Date "2021.04.17"]
[Round "1"]
[White "RunningPawnz88"]
[Black "Zelezny1984"]
[Result "0-1"]
[WhiteElo "1342"]
[BlackElo "2062"]
[TimeControl "180+1"]
[EndTime "9:05:55 PDT"]
[Termination "Uživatel Zelezny1984 zvítězil po vzdání soupeře"]

1. d4 {[%clk 0:02:56.3]} 1... e6 {[%clk 0:03:00]} 2. c4 {[%clk 0:02:55.8]} 2...
d5 {[%clk 0:03:00.4]} 3. Nc3 {[%clk 0:02:55.7]} 3... c5 {[%clk 0:03:00.7]} 4. e3
{[%clk 0:02:55.7]} 4... Nf6 {[%clk 0:02:59.3]} 5. Nf3 {[%clk 0:02:55.7]} 5...
Nc6 {[%clk 0:02:59.4]} 6. b3 {[%clk 0:02:50.5]} 6... cxd4 {[%clk 0:02:47.2]} 7.
exd4 {[%clk 0:02:49.8]} 7... Bb4 {[%clk 0:02:40.6]} 8. Bd2 {[%clk 0:02:47.7]}
8... dxc4 {[%clk 0:02:25.2]} 9. Bxc4 {[%clk 0:02:46.4]} 9... Nxd4 {[%clk
0:02:15.6]} 10. O-O {[%clk 0:02:37.9]} 10... O-O {[%clk 0:02:10.2]} 11. a3
{[%clk 0:02:17.3]} 11... Be7 {[%clk 0:01:56]} 12. Be3 {[%clk 0:02:07.1]} 12...
Nxf3+ {[%clk 0:01:55]} 13. Qxf3 {[%clk 0:02:06.2]} 13... Qc7 {[%clk 0:01:29.7]}
14. Bf4 {[%clk 0:01:56.5]} 14... e5 {[%clk 0:01:08.6]} 15. Nb5 {[%clk 0:01:48]}
15... Qc5 {[%clk 0:01:08.8]} 16. Be3 {[%clk 0:01:35.4]} 16... Qc6 {[%clk
0:00:48.2]} 17. Qxc6 {[%clk 0:01:29.8]} 17... bxc6 {[%clk 0:00:49.1]} 18. Nxa7
{[%clk 0:01:27.3]} 18... Bb7 {[%clk 0:00:49.6]} 19. Rad1 {[%clk 0:01:22]} 19...
Bxa3 {[%clk 0:00:45.3]} 20. Bg5 {[%clk 0:01:17]} 20... Rxa7 {[%clk 0:00:42.1]}
21. Bxf6 {[%clk 0:01:16.9]} 21... gxf6 {[%clk 0:00:43]} 22. Rd6 {[%clk
0:01:09.4]} 22... Bxd6 {[%clk 0:00:42.5]} 0-1